Cogmind - Beta 10.1 @@@ ROGUE MODE // 2020.10.14 @ 03:19:32 Player: aperiodic Result: Self-destructed Performance ------------- Evolutions (1) 500 Regions Visited (5) 1000 Robots Destroyed (69) 345 Value Destroyed (1471) 1471 Prototype IDs (34) 680 Alien Tech Used (0) 0 Bonus (-224) -224 TOTAL SCORE: 3772 Bonus ------- High Alert Combat Kills 11 Follower Combat Kills 85 Aligned with FarCom 300 Friendly Fire -620 Cogmind --------- Core Integrity 157/400 Matter 2/300 Energy 280/280 System Corruption 9% Temperature Cool (0) Movement Rolling (135) Ox5 Location -9/Exiles Parts ------- > --- POWER (1) -------- Cooled Ion Engine > --- PROPULSION (2) --- Wheel Armored Wheel > --- UTILITY (4) ------ High-capacity Storage Unit Humpback Light Armor Plating > --- WEAPON (2) ------- (None) > --- INVENTORY (32) --- Cooled Ion Engine Armored Wheel Armored Wheel Heat Sink AWS/Thermal Advanced Beam Cannon Heavy Assault Rifle Autogun Autogun Improved Assault Rifle Improved Assault Rifle EMP Blaster Rocket Launcher Plasma Cutter Peak State ------------ > --- POWER ------------ Cooled Ion Engine > --- PROPULSION ------- Wheel Armored Wheel > --- UTILITY ---------- High-capacity Storage Unit Humpback Light Armor Plating > --- WEAPON ----------- Improved Assault Rifle EMP Blaster > --- INVENTORY -------- Cooled Ion Engine Armored Wheel Armored Wheel Heat Sink AWS/Thermal Advanced Beam Cannon Heavy Assault Rifle Autogun Autogun Improved Assault Rifle Rocket Launcher Plasma Cutter [Rating: 19] Favorites ----------- Power Cooled Ion Engine Engine Cooled Ion Engine Power Core Light Nuclear Core Propulsion Armored Wheel Treads Light Treads Wheel Armored Wheel Utility High-capacity Storage Unit Storage High-capacity Storage Unit Processor Visual Processing Unit Hackware Hacking Suite Protection Light Armor Plating Weapon Autogun Energy Gun Small Laser Energy Cannon Light EM Pulse Cannon Ballistic Gun Autogun Launcher EMP Blaster Special Weapon Mining Laser Build | -11 -10 -10 -9 -9 -9 ------- Run | Scr Mat Min Mat Min Exi Slots Evolved 2 | . . . 2 . . Power . | . . . . . . Propulsion . | . . . . . . Utility 2 | . . . 2 . . Weapon . | . . . . . . Parts Attached 62 | 6 9 5 32 2 8 Power 8 | 1 1 1 4 . 1 Engine 7 | 1 1 1 3 . 1 Core 1 | . . . 1 . . Reactor . | . . . . . . Propulsion 8 | 2 2 . 3 1 . Treads 2 | 2 . . . . . Leg . | . . . . . . Wheel 6 | . 2 . 3 1 . Hover . | . . . . . . Flight . | . . . . . . Utility 13 | 1 4 . 4 1 3 Device . | . . . . . . Storage 9 | 1 2 . 3 1 2 Processor 1 | . 1 . . . . Hackware 1 | . 1 . . . . Protection 2 | . . . 1 . 1 Artifact . | . . . . . . Weapon 33 | 2 2 4 21 . 4 Energy Gun 1 | 1 . . . . . Energy Cannon 3 | . . . 3 . . Ballistic Gun 16 | 1 2 1 10 . 2 Ballistic Cannon . | . . . . . . Launcher 12 | . . 2 8 . 2 Special Weapon 1 | . . 1 . . . Impact Weapon . | . . . . . . Slashing Weapon . | . . . . . . Piercing Weapon . | . . . . . . Special Melee Weapon . | . . . . . . Unidentified Prototypes 2 | . . . 2 . . Parts Lost 9 | . . 1 8 . . Power 1 | . . . 1 . . Propulsion 2 | . . . 2 . . Utility 1 | . . 1 . . . Weapon 5 | . . . 5 . . Highest Loss Streak 3 | . . 1 3 . . Average Slot Usage (%) 84 | . 91 95 76 95 76 Engine 11 | . 14 14 10 11 11 Treads 1 | . 14 . . . . Wheel 22 | . 14 28 21 22 22 Storage 23 | . 15 14 22 28 31 Hackware 2 | . 3 10 . . . Protection 5 | . . . 1 11 11 Energy Cannon 1 | . . . 3 . . Ballistic Gun 13 | . 20 16 13 22 . Launcher 3 | . . 11 4 . . Naked Turns . | . . . . . . Heaviest Build 152 | 9 43 44 81 89 152 Greatest Support 40 | 40 40 24 24 22 22 Greatest Overweight (x) 6 | . 3 1 6 4 6 Average Overweight (x) 2 | . . 1 3 3 3 Largest Inventory Capacity 40 | 6 18 12 20 24 40 Average Capacity 19 | 5 10 12 20 22 27 Most Carried 25 | 4 12 12 20 22 25 Average Carried 16 | 1 7 11 15 20 20 Final Capacity 32 | 6 12 12 20 24 32 Final Carried 22 | 4 12 12 19 22 15 Class Distribution -------------------- 72% | Hauler-Mutant 27% | Mutant Dominant Class ---------------- Mutant | -10/Materials Mutant | -10/Mines Hauler-Mutant | -9/Materials Hauler-Mutant | -9/Mines Hauler-Mutant | -9/Exiles Resources | -11 -10 -10 -9 -9 -9 ----------- Run | Scr Mat Min Mat Min Exi Matter Collected 1726 | 208 136 350 870 162 . Remotely . | . . . . . . Salvage Created 2143 | . 170 521 1397 34 21 Parts 147 | . 11 30 101 5 . Haulers Intercepted 6 | . . . 6 . . Recyclers Shooed 2 | . . 1 . 1 . Parts Field Recycled . | . . . . . . Retrieved Matter . | . . . . . . Parts Self-Destructed . | . . . . . . Prevented . | . . . . . . Kills | -11 -10 -10 -9 -9 -9 ------- Run | Scr Mat Min Mat Min Exi Combat Hostiles Destroyed 44 | . 4 13 25 . 2 Guns 22 | . 4 8 10 . . Cannons 3 | . . . 3 . . AOE 19 | . . 5 12 . 2 Classes Destroyed 12 | . 2 4 5 . 1 Worker 4 | . . 1 1 2 . Builder 3 | . . 1 2 . . Tunneler 4 | . . 2 2 . . Hauler 6 | . . . 6 . . Mechanic 1 | . . . 1 . . Watcher 4 | . 1 . 3 . . Swarmer 10 | . . 3 7 . . Grunt 27 | . 4 10 13 . . Brawler 1 | . . . 1 . . Duelist 1 | . . . 1 . . Sentry 3 | . . . 3 . . Assembled 5 | . . . . . 5 Best Kill Streak 10 | . 2 7 10 2 2 Combat Bots Only 7 | . 1 4 7 . 2 Max Kills in Single Turn 3 | . 1 2 2 1 3 Gunslinging 1 | . . . 1 . . Exploded 2 | . . 1 2 . 1 Melee . | . . . . . . Uniques/NPCs Destroyed . | . . . . . . Combat | -11 -10 -10 -9 -9 -9 -------- Run | Scr Mat Min Mat Min Exi Damage Taken 2200 | . 117 307 1285 . 491 Core 291 | . . 48 210 . 33 Absorbed by Shields . | . . . . . . Core Remaining (%) 90 | 100 . 80 . . . Volleys Fired 154 | . 19 29 89 4 13 Largest 2 | . 2 2 2 2 2 Hottest 101 | . 60 100 101 46 66 Shots Fired 285 | . 38 57 155 9 26 Gun 221 | . 38 32 124 9 18 Cannon 9 | . . . 9 . . Launcher 54 | . . 24 22 . 8 Special 1 | . . 1 . . . Kinetic 212 | . 29 32 124 9 18 Thermal 13 | . 9 1 3 . . Explosive 8 | . . . 4 . 4 Electromagnetic 52 | . . 24 24 . 4 Robot Hit Streak 11 | . 8 5 10 3 11 Robot Miss Streak 4 | . 2 4 4 2 1 Penetration Max . | . . . . . . Secondary Targets 2 | . . . 2 . . Max Gunslinging Chain 1 | . . . 1 . . Shots Hit Robots 164 | . 24 24 93 4 19 Core Hits 102 | . 10 24 56 2 10 Critical Hits 3 | . . . 3 . . Critical Kills 2 | . . . 2 . . Critical Parts Destroyed 1 | . . . 1 . . Melee Attacks . | . . . . . . Impact . | . . . . . . Slashing . | . . . . . . Piercing . | . . . . . . Sneak Attacks . | . . . . . . Combat Hostiles . | . . . . . . Follow-up Attacks . | . . . . . . Damage Inflicted 4344 | . 298 923 2316 61 746 Guns 2084 | . 298 271 1177 61 277 Cannons 129 | . . . 129 . . Explosions 2131 | . . 652 1010 . 469 Melee . | . . . . . . Ramming . | . . . . . . Kinetic 2011 | . 225 271 1177 61 277 Thermal 147 | . 73 11 63 . . Explosive 779 | . . . 372 . 407 Electromagnetic 1407 | . . 641 704 . 62 Impact . | . . . . . . Slashing . | . . . . . . Piercing . | . . . . . . Highest Corruption 9 | . . 2 9 9 9 Average Corruption 7 | . . 1 7 9 9 Corruption Purged . | . . . . . . Effects 92 | . . 2 41 23 26 Message Errors 19 | . . 1 5 7 6 Matter Fused 26 | . . . 11 5 10 Heat Flow Errors 7 | . . . 4 1 2 Energy Discharges 14 | . . . 5 6 3 Parts Rejected 1 | . . . 1 . . Data Loss (minor) 6 | . . . 1 3 2 Data Loss (major) 3 | . . . 2 . 1 Misfires 3 | . . . 2 1 . Targeting Errors 10 | . . 1 7 . 2 Weapon Failures 3 | . . . 3 . . Overload Shots . | . . . . . . Overflow Damage 98 | . . 7 66 . 25 Projectiles . | . . . . . . Explosions 98 | . . 7 66 . 25 Melee . | . . . . . . Knockbacks . | . . . . . . Impact . | . . . . . . Kinetic . | . . . . . . Secondary . | . . . . . . Self-Inflicted Damage 147 | . . 81 66 . . Shots 10 | . . 7 3 . . Rammed . | . . . . . . Targets Rammed . | . . . . . . Kicked . | . . . . . . Crushed . | . . . . . . Highest Temperature 205 | . 70 38 205 101 201 Average Temperature 30 | . 23 15 36 21 87 Received Heat Transfer 525 | . 60 99 366 . . Siege Activations . | . . . . . . Robots Corrupted . | . . . . . . Combat Hostiles . | . . . . . . Parts Fried 2 | . . . 2 . . Impact Corruptions . | . . . . . . Robots Melted . | . . . . . . Combat Hostiles . | . . . . . . Parts Melted . | . . . . . . Heat Transferred 336 | . 175 50 111 . . Parts Sabotaged . | . . . . . . Parts Stolen . | . . . . . . Parts Stripped . | . . . . . . Power Chain Reactions 3 | . . 1 2 . . Missiles Intercepted . | . . . . . . Alert | -11 -10 -10 -9 -9 -9 ------- Run | Scr Mat Min Mat Min Exi Peak Influence 459 | . 200 228 459 232 . Initial 162 | . . 78 74 162 . Average 157 | . 107 129 241 96 . Maximum Alert Level 2 | . 1 1 2 1 . Low Security (%) 75 | 100 87 96 46 93 . Level 1 20 | . 12 3 43 6 . Level 2 4 | . . . 10 . . Level 3 . | . . . . . . Level 4 . | . . . . . . Level 5 . | . . . . . . High Security . | . . . . . . Max Security . | . . . . . . Squads Dispatched 5 | . 3 . 1 1 . Investigation 1 | . 1 . . . . Extermination . | . . . . . . Reinforcement 3 | . 2 . 1 . . Assault 1 | . . . . 1 . Garrison . | . . . . . . Intercept . | . . . . . . Construction Impeded 1 | . . . 1 . . Haulers Reinforced . | . . . . . . Stealth | -11 -10 -10 -9 -9 -9 --------- Run | Scr Mat Min Mat Min Exi Distress Signals 5 | . 2 1 2 . . Communications Jammed . | . . . . . . Distress Signals . | . . . . . . Times Spotted 67 | . 10 16 36 . 5 Peak Tracking Total 6 | . 3 3 6 . 6 Tactical Retreats 4 | . 1 1 2 . . Traps | -11 -10 -10 -9 -9 -9 ------- Run | Scr Mat Min Mat Min Exi Traps Triggered 5 | . 1 . 4 . . Indirectly . | . . . . . . Trap Hack Attempts . | . . . . . . Triggered . | . . . . . . Disarmed . | . . . . . . Reprogrammed . | . . . . . . Reused 2 | . . . . . 2 Traps Extracted . | . . . . . . Installed 3 | . . . . . 3 Triggered . | . . . . . . Machines | -11 -10 -10 -9 -9 -9 ---------- Run | Scr Mat Min Mat Min Exi Machines Disabled 9 | . . 1 5 . 3 Max in Single Turn 2 | . . 1 1 . 2 Machines Sabotaged . | . . . . . . Garrisons Compromised . | . . . . . . Overloaded Fab Kills . | . . . . . . Fab Network Shutdowns . | . . . . . . Hacking | -11 -10 -10 -9 -9 -9 --------- Run | Scr Mat Min Mat Min Exi Machines Accessed 11 | . 1 . 9 . 1 Terminals 7 | . 1 . 6 . . Fabricators . | . . . . . . Repair Stations 1 | . . . 1 . . Recycling Units . | . . . . . . Scanalyzers 2 | . . . 2 . . Garrison Access . | . . . . . . Total Hacks 37 | . 4 . 32 . 1 Successful 25 | . 4 . 20 . 1 Failed 12 | . . . 12 . . Catastrophic . | . . . . . . Database Lockouts . | . . . . . . Manual 21 | . 2 . 17 . 2 Terminals 28 | . 4 . 24 . . Fabricators . | . . . . . . Repair Stations 2 | . . . 2 . . Recycling Units . | . . . . . . Scanalyzers 6 | . . . 6 . . Garrison Access . | . . . . . . Terminal Hacks 10 | . 3 . 6 . 1 Prototype ID Bank 5 | . 1 . 4 . . Unreport Threat 1 | . . . 1 . . Locate Traps 1 | . 1 . . . . Hauler Manifests 2 | . 1 . 1 . . EX-Prototype ID Bank 1 | . . . . . 1 Fabricator Hacks . | . . . . . . Repair Station Hacks 1 | . . . 1 . . Scan Component 1 | . . . 1 . . Recycling Unit Hacks . | . . . . . . Scanalyzer 6 | . . . 6 . . Insert Component 3 | . . . 3 . . Analyze 3 | . . . 3 . . Garrison Access Hacks . | . . . . . . Unauthorized Hacks 8 | . 1 . 7 . . Terminals 8 | . 1 . 7 . . Botnet 7 | . 1 . 6 . . Operators 1 | . . . 1 . . Fabricators . | . . . . . . Repair Stations . | . . . . . . Recycling Units . | . . . . . . Scanalyzers . | . . . . . . Garrison Access . | . . . . . . Data Cores Recovered . | . . . . . . Used . | . . . . . . Hacking Detections 8 | . 1 . 7 . . Full Trace Events . | . . . . . . Feedback Events . | . . . . . . Feedback Blocked . | . . . . . . Robot Schematics Acquired . | . . . . . . Robots Built . | . . . . . . Matter . | . . . . . . Time . | . . . . . . Total Robot Build Rating . | . . . . . . Part Schematics Acquired 3 | . . . 3 . . Parts Built . | . . . . . . Matter . | . . . . . . Time . | . . . . . . Total Part Build Rating . | . . . . . . Parts Repaired . | . . . . . . Time . | . . . . . . Parts Recycled . | . . . . . . Recycled Matter . | . . . . . . Retrieved Matter . | . . . . . . Retrieved Components . | . . . . . . Parts Scanalyzed 3 | . . . 3 . . Part Schematics Acquired 3 | . . . 3 . . Parts Damaged . | . . . . . . Bothacking | -11 -10 -10 -9 -9 -9 ------------ Run | Scr Mat Min Mat Min Exi Used RIF Installer . | . . . . . . Robots Hacked . | . . . . . . Non-combat . | . . . . . . Combat . | . . . . . . Robot Hacks Applied . | . . . . . . Relay Couplers Released . | . . . . . . Robots Rewired . | . . . . . . Allies Hacked . | . . . . . . Hacks Repelled . | . . . . . . Allies | -11 -10 -10 -9 -9 -9 -------- Run | Scr Mat Min Mat Min Exi Total Allies 3 | . . . . 3 . Largest Group 3 | . . . . 3 . Highest-Rated Group 74 | . . . . 74 . Highest-Rated Ally 31 | . . . . 31 . Total Orders . | . . . . . . Ally Attacks 11 | . . . . 11 . Total Damage 173 | . . . . 173 . Kills 3 | . . . . 3 . Allies Corrupted 1 | . . . . 1 . Allies Melted . | . . . . . . Intel | -11 -10 -10 -9 -9 -9 ------- Run | Scr Mat Min Mat Min Exi Robot Analysis Total . | . . . . . . Derelict Logs Recovered 3 | . . 1 . 2 . Drone Launches . | . . . . . . Drone Recoveries . | . . . . . . Exploration | -11 -10 -10 -9 -9 -9 ------------- Run | Scr Mat Min Mat Min Exi Turns Passed 3382 | 90 273 571 1037 699 712 Spaces Moved 2352 | 54 124 475 615 556 528 Core 10 | 10 . . . . . Treads 97 | 44 53 . . . . Legs . | . . . . . . Wheels 2245 | . 71 475 615 556 528 Hover . | . . . . . . Flight . | . . . . . . Fastest Speed 50 | 50 100 100 110 115 115 Average Speed 117 | 139 125 100 119 120 121 Slowest Speed 160 | 160 160 100 150 125 145 Overloaded Moves . | . . . . . . Propulsion Burnouts . | . . . . . . Robots Hopped . | . . . . . . Cave-ins Triggered . | . . . . . . Exploration Rate (%) 53 | 5 22 82 54 97 61 Regions Visited 5 Branch Regions 3 Pre-discovered Areas . | . . . . . . Known Exits Taken . | . . . . . . Unknown Exits Taken 5 | 1 1 1 1 1 . Scrap Searched 3 | . . 1 . 2 . Spaces Dug . | . . . . . . Terrain Destroyed 67 | . . 4 36 . 27 Melee . | . . . . . . Projectile . | . . . . . . AOE 67 | . . 4 36 . 27 Terrain Rammed . | . . . . . . Walls Destroyed . | . . . . . . Machines Disabled . | . . . . . . Actions | -11 -10 -10 -9 -9 -9 --------- Run | Scr Mat Min Mat Min Exi Total 2729 | 69 209 518 777 575 581 Wait 57 | . 32 3 12 10 . Move 2347 | 53 123 474 614 555 528 Hop . | . . . . . . Pick Up 65 | 10 18 3 23 4 7 Fast Attach 1 | . . . 1 . . Attach 25 | 6 2 . 12 1 4 Detach 5 | . . . 1 . 4 Swap 36 | . 7 5 19 1 4 Drop 36 | . 8 4 6 . 18 Fire 154 | . 19 29 89 4 13 Melee . | . . . . . . Ram . | . . . . . . Kick . | . . . . . . Crush . | . . . . . . Escape Stasis . | . . . . . . Rewire . | . . . . . . Trap 3 | . . . . . 3 Miscellaneous . | . . . . . . Route ------- -11/Scrapyard -10/Materials (discovered 2 exits: *Mat / [*Min]) -10/Mines -9/Materials (discovered 2 exits: [*Mat] / [*Min]) -9/Mines (discovered 3 exits: [*Mat x2] / *Exi) -9/Exiles (discovered 1 exit: [*Min]) History --------- Turn | Location | Event 5 | -11/Scrapyard | Discovered new exit (range 16) 91 | -11/Scrapyard | Entered Materials 318 | -10/Materials | Discovered new exit (range 7) 322 | -10/Materials | Build established: Mutant 352 | -10/Materials | Discovered new exit (range 15) 364 | -10/Materials | Entered Mines 409 | -10/Mines | Received a Rocket Launcher from a helpful Derelict 445 | -10/Mines | Found a damaged Exp. Sensor Array with a note attached 448 | -10/Mines | Found Prototype Device 468 | -10/Mines | Excavation squad dispatched 468 | -10/Mines | A large section of the Mines collapsed 718 | -10/Mines | Excavation squad dispatched 930 | -10/Mines | Discovered new exit (range 6) 935 | -10/Mines | Entered Materials 935 | -9/Materials | Evolved 2 slots: Utility x2 1219 | -9/Materials | Build established: Hauler-Mutant 1329 | -9/Materials | Discovered new exit (range 13) 1343 | -9/Materials | Identified Exp. Sensor Array 1611 | -9/Materials | Core integrity fell below 50% 1635 | -9/Materials | Lost 3 parts (1n2w) 1656 | -9/Materials | Destroyed 7 combat bots 1892 | -9/Materials | Discovered new exit (range 9) 1972 | -9/Materials | Entered Mines 2024 | -9/Mines | Learned 2 Materials zone layouts 2028 | -9/Mines | Learned 4 Materials zone layouts 2123 | -9/Mines | Discovered new exit (range 8) 2124 | -9/Mines | Met a Derelict testing a Signal Generator 2238 | -9/Mines | Found a hidden stash of uninstalled traps 2394 | -9/Mines | Discovered new exit (range 10) 2666 | -9/Mines | Deemed a non-threat by the Exiles lab entrance 2666 | -9/Mines | Discovered new exit (range 5) 2671 | -9/Mines | Entered Exiles 2700 | -9/Exiles | Met 8R-AWN 2721 | -9/Exiles | Met EX-HEX 2753 | -9/Exiles | Met EX-BIN 2769 | -9/Exiles | Aligned with FarCom system 2770 | -9/Exiles | Given EX-Vault access code 2797 | -9/Exiles | Opened EX-Vault 2806 | -9/Exiles | Found AWS/Thermal 2813 | -9/Exiles | Found PSU Rigger 2845 | -9/Exiles | Warned to stay clear of 0b10 Research branches 2954 | -9/Exiles | Discovered new exit (range 15) 3059 | -9/Exiles | Met EX-DEC 3325 | -9/Exiles | Attacked by the Exiles 3383 | -9/Exiles | Self-destructed Last Messages --------------- 03355_ Penetrated by HV Slug. 03359_ The unstable cave ceiling collapses. 03360_ Penetrated by HV Slug. 03361_ Critical hit. 03363_ Penetrated by HV Slug. 03365_ System corrupted: Heat flow error (+102). 03366_ Penetrated by HV Slug. 03373_ HV Slug penetrates Wall. 03375_ Penetrated by HV Slug. 03375_ HV Slug penetrates Machine. 03377_ The unstable cave ceiling collapses. 03378_ Penetrated by HV Slug. 03378_ HV Slug penetrates Wall. 03379_ Penetrated by HV Slug. 03379_ HV Slug penetrates Wall. 03381_ Penetrated by HV Slug. 03381_ HV Slug penetrates Wall. 03382_ Penetrated by HV Slug. 03382_ HV Slug penetrates Wall. [Achievement: Back For More] Map ----- +----------------------------------------------------+ | """#??????????????????????????????????????????? | | """#??????????????????????????????????????????? | | """#??????????????????????????????????????????? | | """#??????????????????????????????????????????? | | """"??????????????????????????????????????????? | | """#??????????????????????????????????????????? | | X" """???????????????????????????????????????????? | | "" #??????????????????????????????????????????? | | """"""#??????????????????????????????????????????? | | #######??????????????????????????????????????????? | | ?????????????????????????????????????????????????# | | ???? ???????????????????????????????????????????## | | ????? ??????????????????????????????????????????# | | ??#### ######???????????????????????????????????# | | ###"""" """"##??????????????????????????????????#! | | " """ """"##????????????????????????????????##! | | " #???????????????????????????????## ! | | """#???????????????????????????????# ! | | "#???????????#####???????????????# | | " "##?????????##" #??????????????## | | "###???????#" #?????????????## | | ""#??????##" ##????????????# | | #????### ###????????### | | ##???# ########## | | " ^##?## #""""## # | | "" [### @ # | | g ## | | " #### | | ""#?#"""""#### * | | #"""##?#######??#### * | | ######??????????????##### * | | ##???????????????????????### | | " #??????????????????????????### | | ##????????????????????????????## | | " " "" #??????????????????????????????# | | """ """ ##??????????????????????????????# | | ?#"""?# # # ????????????????????????????????? | | ???#???# # ##????????????????????????????????? | | ?????????# ####?????????????????????????????????? | | ?????????????????????????????????????????????????? | | ?????????????????????????????????????????????????? | | ?????????????????????????????????????????????????? | | ?????????????????????????????????????????????????? | | ?????????????????????????????????????????????????? | | ?????????????????????????????????????????????????? | | ?????????????????????????????????????????????????? | | ?????????????????????????????????????????????????? | | ?????????????????????????????????????????????????? | | ?????????????????????????????????????????????????? | | ?????????????????????????????????????????????????? | +----------------------------------------------------+ Best States ------------- Heat Dissipation 28 Energy Generation 14 Energy Capacity 280 Matter Stores 300 Matter Capacity 300 Sight Range 18 Terrain Scan Density 10 Armor Coverage 150 Evasion (%) 40 Recoil Reduction 2 Offensive Hacking 10 Item Schematics ----------------- Imp. Flight Unit | -9/Materials | Scanalyzed Exp. Sensor Array | -9/Materials | Scanalyzed Hcp. Storage Unit | -9/Materials | Scanalyzed Robot Schematics ------------------ None Fabricated ------------ Nothing Alien Tech Used ----------------- None Achievements -------------- Back For More Challenges ------------ None Game ------ Seed LinkedThunderWand Manual? 0 Play Time 01:04:43 Cumulative 105.0 hours Start 2020.10.14 @ 02:14:57 End 2020.10.14 @ 03:19:32 Sessions 1 Manual Loads 0 Difficulty Rogue Special Mode None Game No. 50 Rogue 46 Adventurer 4 Explorer 0 Win Type - Total 0 Types 0/0/0/0/0/0/0/0/0 Lore% 45 Gallery% 61 Achievement% 45 Wizard Run 0 Options --------- ASCII 1 Keyboard 0 Movement Mouse Keybinds 0 Fullscreen 1 Font 18/SmallcapsGlow Map View 76x50 Tactical HUD 1 Map Filters NONE Filters NONE Steam 1 RUN: 573c0350-110f-41d1-bfb7-1fc6ed2445d9